Cogmind - Beta 11 X8 @@@ ROGUE MODE // 2021.11.10 @ 19:05:03 Player: leiavoia Result: System corrupted Performance ------------- Evolutions (7) 3500 Regions Visited (12) 2400 Robots Destroyed (201) 1005 Value Destroyed (9320) 9320 Prototype IDs (20) 400 Alien Tech Used (1) 200 Bonus (3357) 3357 TOTAL SCORE: 20182 Bonus ------- High Alert Combat Kills 1503 Follower Combat Kills 563 Met Warlord at Base 500 MAIN.C Attacked Warlord 500 Warlord Defense Kill 834 Friendly Fire -543 Cogmind --------- Core Integrity 0/1300 Matter 290/300 Energy 128/495 System Corruption 102% Temperature Critical (789) Movement Rolling (190) Ox5 Location -3/Research Parts ------- > --- POWER (2) -------- Light Antimatter Reactor Reinforced Antimatter Reactor > --- PROPULSION (4) --- High-density Centrium Wheel > --- UTILITY (10) ----- High-capacity Storage Unit Small Battery Advanced Sensor Array Advanced Core Analyzer Improved Armor Integrity Analyzer Transmission Jammer > --- WEAPON (6) ------- Electrolaser Plasma Rifle Phase Gun Heavy Neutron Cannon > --- INVENTORY (20) --- Compact Particle Reactor Light Quantum Reactor Wheel Wheel High-density Centrium Wheel Advanced Heat Sink Experimental Cooling System Medium Matter Pod (100) Long-range Tractor Beam Electrolaser Electrolaser Long-range Proton Cannon Coil Gun Coil Gun Heavy Machine Gun Heavy Machine Gun Compact Tesla Bomb Launcher Peak State ------------ > --- POWER ------------ Reinforced Antimatter Reactor Light Particle Reactor > --- PROPULSION ------- Medium Treads High-density Centrium Wheel High-density Centrium Wheel High-density Centrium Wheel > --- UTILITY ---------- Advanced Heat Sink Advanced Heat Sink High-capacity Storage Unit Advanced Sensor Array Terrain Scan Processor Improved Armor Integrity Analyzer Improved Weapon Cycler Transmission Jammer Hardened Heavy Armor Plating > --- WEAPON ----------- Quantum Rifle Matter Neutralizer Helical Railgun Linear Accelerator Compact Tesla Bomb Launcher Power Sword > --- INVENTORY -------- Light Ion Engine Antimatter Reactor Antimatter Reactor Antimatter Reactor Wheel High-density Centrium Wheel Advanced Heat Sink Small Battery Medium Matter Pod Hacking Suite Long-range Tractor Beam Drone Bay Gamma Rifle Electrolaser Electrolaser Long-range Proton Cannon Matter Neutralizer Heavy Neutron Cannon Compact Tesla Bomb Launcher [Rating: 140] Favorites ----------- Power Antimatter Reactor Engine Reinforced Ion Engine Power Core Fission Core Reactor Antimatter Reactor Propulsion Armored Medium Treads Treads Armored Medium Treads Leg Carbon-fiber Leg Wheel Compact Wheel Utility High-capacity Storage Unit Device Advanced Heat Sink Storage High-capacity Storage Unit Processor Advanced Targeting Computer Hackware System Shield Protection Improved Medium Armor Plating Weapon Flak Gun Energy Gun Heavy Particle Gun Energy Cannon Matter Neutralizer Ballistic Gun Flak Gun Ballistic Cannon Mini Assault Cannon Launcher Compact Tesla Bomb Launcher Special Weapon Remote Datajack Slashing Weapon Scythe Build | -11 -10 -9 -8 -7 -6 -5 -4 -4 -4 -4 -3 -3 ------- Run | Scr Mat Mat Mat Fac Fac Fac Fac Upp Upp War Pro Res Slots Evolved 14 | . . 2 2 2 2 2 2 . . . . 2 Power 1 | . . . . . . . . . . . . 1 Propulsion 2 | . . . . 1 1 . . . . . . . Utility 8 | . . 1 2 1 1 1 2 . . . . . Weapon 3 | . . 1 . . . 1 . . . . . 1 Parts Attached 215 | 2 2 23 22 31 3 6 37 3 6 9 8 63 Power 21 | . 1 4 1 . 1 . 3 . . . 1 10 Engine 7 | . 1 4 1 . . . . . . . . 1 Core 3 | . . . . . 1 . 1 . . . . 1 Reactor 11 | . . . . . . . 2 . . . 1 8 Propulsion 38 | 2 . 5 4 7 1 4 4 . 2 2 . 7 Treads 18 | 1 . 4 1 2 . 2 4 . . 2 . 2 Leg 5 | . . . . 4 1 . . . . . . . Wheel 15 | 1 . 1 3 1 . 2 . . 2 . . 5 Hover . | . . . . . . . . . . . . . Flight . | . . . . . . . . . . . . . Utility 84 | . . 7 8 12 1 1 20 1 3 3 4 24 Device 45 | . . 4 2 5 1 . 13 . 2 3 3 12 Storage 8 | . . 2 1 . . . 1 . . . . 4 Processor 10 | . . 1 1 2 . 1 2 . . . . 3 Hackware 5 | . . . 3 1 . . . . . . . 1 Protection 16 | . . . 1 4 . . 4 1 1 . 1 4 Artifact . | . . . . . . . . . . . . . Weapon 72 | . 1 7 9 12 . 1 10 2 1 4 3 22 Energy Gun 24 | . 1 4 5 2 . . . . 1 3 . 8 Energy Cannon 9 | . . 2 . . . . 2 . . . . 5 Ballistic Gun 16 | . . . 1 6 . 1 4 . . . 2 2 Ballistic Cannon 9 | . . 1 1 . . . 3 . . . 1 3 Launcher 4 | . . . . . . . . 1 . . . 3 Special Weapon 1 | . . . . 1 . . . . . . . . Impact Weapon . | . . . . . . . . . . . . . Slashing Weapon 9 | . . . 2 3 . . 1 1 . 1 . 1 Piercing Weapon . | . . . . . . . . . . . . . Special Melee Weapon . | . . . . . . . . . . . . . Unidentified Prototypes 14 | . . 3 3 . . . . 1 . 2 1 4 Corrupted Parts 13 | . . . . . . . . . . . . 13 System Corruption 87 | . . . . . . . . . . . . 87 Parts Lost 77 | . 2 1 11 5 . . 5 . . 3 4 46 Power 12 | . 1 1 1 . . . . . . . 1 8 Propulsion 13 | . . . 4 2 . . . . . . . 7 Utility 25 | . . . 2 3 . . 2 . . 3 1 14 Weapon 27 | . 1 . 4 . . . 3 . . . 2 17 Highest Loss Streak 10 | . 2 1 9 3 . . 1 . . 3 3 10 Average Slot Usage (%) 95 | . 85 97 94 97 97 100 95 93 94 94 99 92 Engine 2 | . 14 11 9 7 4 . . . . . . . Reactor 3 | . . . . . . . 2 5 5 5 4 7 Treads 8 | . 14 11 8 3 . 4 12 15 15 5 10 3 Leg 2 | . . . . 8 23 8 . . . . . . Wheel 6 | . 14 11 9 8 . 9 5 . . 10 10 13 Device 17 | . . 10 4 13 26 23 22 20 17 18 20 17 Storage 6 | . 14 11 10 7 6 5 5 5 5 5 5 5 Processor 15 | . . 8 13 9 6 11 16 20 20 20 20 14 Hackware 1 | . . . 11 7 . . . . . . . . Protection 4 | . . . . 5 6 5 6 5 7 5 5 2 Energy Gun 6 | . 14 19 13 7 6 5 2 . 2 10 9 5 Energy Cannon 1 | . . 1 5 . . . 2 . . . . 2 Ballistic Gun 9 | . 14 10 . 10 6 11 6 15 15 9 7 5 Ballistic Cannon 1 | . . 1 . . . . 4 . . . 2 3 Slashing Weapon 4 | . . . 5 3 6 5 2 7 5 5 5 3 Naked Turns . | . . . . . . . . . . . . . Heaviest Build 146 | 12 12 60 64 73 70 74 107 90 96 117 117 146 Greatest Support 129 | 20 10 20 40 48 65 32 129 129 129 54 32 70 Greatest Overweight (x) 6 | . 1 5 6 6 1 4 5 . 2 3 3 4 Average Overweight (x) 1 | . 1 1 4 2 1 2 1 . . 2 2 1 Largest Inventory Capacity 20 | 8 8 20 20 20 20 20 20 20 20 20 20 20 Average Capacity 19 | 8 8 9 20 20 20 20 20 20 20 20 20 20 Most Carried 20 | 6 6 12 20 20 20 20 20 20 20 20 20 20 Average Carried 17 | 4 4 8 10 19 19 19 19 19 20 19 18 17 Final Capacity 20 | 8 8 20 20 20 20 20 20 20 20 20 20 20 Final Carried 20 | 4 6 12 20 20 20 20 20 20 20 19 18 17 Class Distribution -------------------- 46% | Scavenger-Gunner 17% | Scavenger-Mutant 6% | Scavenger-Skirmisher 5% | Gunner 5% | Mutant 5% | Scavenger-Executioner 4% | Scavenger-Assassin Dominant Class ---------------- Mutant | -10/Materials Scavenger-Skirmisher | -9/Materials Scavenger-Assassin | -8/Materials Scavenger-Mutant | -7/Factory Scavenger-Mutant | -6/Factory Scavenger-Gunner | -5/Factory Scavenger-Gunner | -4/Factory Scavenger-Gunner | -4/Upper Caves Scavenger-Gunner | -4/Upper Caves Scavenger-Gunner | -4/Warlord Mutant | -3/Proximity Caves Scavenger-Mutant | -3/Research Resources | -11 -10 -9 -8 -7 -6 -5 -4 -4 -4 -4 -3 -3 ----------- Run | Scr Mat Mat Mat Fac Fac Fac Fac Upp Upp War Pro Res Matter Collected 5900 | 220 31 320 380 570 . 184 1449 248 339 238 322 1599 Remotely 286 | . . 42 . . . . . . . . . 244 Salvage Created 10154 | . 237 727 522 792 . 184 1766 408 447 340 710 4021 Parts 397 | . 16 40 17 37 . 8 60 12 14 13 24 156 Haulers Intercepted 6 | . . 2 1 . . . 1 . . . . 2 Recyclers Shooed 14 | . . . . 1 . 3 6 . . . . 4 Parts Field Recycled . | . . . . . . . . . . . . . Retrieved Matter . | . . . . . . . . . . . . . Parts Self-Destructed 114 | . . . . . . . . 1 11 74 28 . Prevented 16 | . . . . . . . . 6 3 7 . . Kills | -11 -10 -9 -8 -7 -6 -5 -4 -4 -4 -4 -3 -3 ------- Run | Scr Mat Mat Mat Fac Fac Fac Fac Upp Upp War Pro Res Combat Hostiles Destroyed 152 | . 6 8 6 16 . 1 19 4 16 6 17 53 Guns 92 | . 6 8 4 15 . 1 6 2 15 5 11 19 Cannons 24 | . . . 1 . . . 13 . . . 1 9 AOE 23 | . . . . 1 . . . 1 1 1 5 14 Classes Destroyed 20 | . 3 5 2 3 . . 3 1 1 2 . . Worker 12 | . . 1 1 3 . . 3 . . . . 4 Builder 10 | . . 1 1 3 . . . . . . . 5 Tunneler 1 | . . . . . . . 1 . . . . . Hauler 6 | . . 2 1 . . . 1 . . . . 2 Recycler 16 | . . 2 2 1 . 1 5 . . . . 5 Operator 2 | . . . 1 1 . . . . . . . . Watcher 7 | . 2 2 . . . 1 1 . . . . 1 Swarmer 29 | . 3 . . . . . . . 5 . 5 16 Saboteur 1 | . . . . . . . . . . 1 . . Grunt 60 | . 3 4 3 11 . . 9 4 2 2 7 15 Brawler 6 | . . . . 1 . . 1 . . 1 1 2 Duelist 3 | . . . 1 . . . . . . . 1 1 Researcher 1 | . . . . . . . . 1 . . . . Sentry 13 | . . 4 2 1 . . 1 . . . 1 4 Specialist 2 | . . . . . . . 2 . . . . . Hunter 16 | . . . . 1 . 1 2 . 2 1 1 8 Programmer 12 | . . . . 2 . . 3 . . . 1 6 Heavy 2 | . . . . . . . 1 . . . . 1 Executioner 1 | . . . . . . . . . . 1 . . Decomposer 2 | . . . . . . . . 2 . . . . Assembled 7 | . . . . . . . . . 7 . . . Thug 1 | . . . . . . . . . . 1 . . Best Kill Streak 14 | . 7 3 4 14 . 1 10 4 7 6 5 12 Combat Bots Only 7 | . 5 2 2 7 . 1 7 4 7 6 5 6 Max Kills in Single Turn 7 | . 1 2 1 7 . 1 2 2 2 2 2 3 Gunslinging 1 | . . . . . . . . . 1 1 1 1 Exploded 3 | . . . . 1 . . . 1 1 1 2 3 Melee . | . . . . . . . . . . . . . Uniques/NPCs Destroyed . | . . . . . . . . . . . . . Combat | -11 -10 -9 -8 -7 -6 -5 -4 -4 -4 -4 -3 -3 -------- Run | Scr Mat Mat Mat Fac Fac Fac Fac Upp Upp War Pro Res Damage Taken 16084 | . 391 361 1425 1455 . 58 3021 203 1108 394 840 6828 Core 2326 | . 84 90 295 279 . . 656 . 84 . 14 824 Absorbed by Shields 242 | . . . . . . . . . . . 242 . Core Remaining (%) 72 | 100 66 77 46 60 100 100 . . . . 34 . Volleys Fired 422 | . 19 34 39 48 . 9 74 10 34 10 28 117 Largest 5 | . 2 3 3 3 . 3 4 3 4 4 4 5 Hottest 380 | . 70 130 201 133 . 111 317 89 177 183 186 380 Shots Fired 1056 | . 38 89 75 122 . 27 229 20 80 28 81 267 Gun 766 | . 38 86 62 120 . 27 79 14 68 28 72 172 Cannon 240 | . . 3 13 . . . 150 . . . 9 65 Launcher 48 | . . . . . . . . 6 12 . . 30 Special 2 | . . . . 2 . . . . . . . . Kinetic 550 | . 19 32 3 80 . 18 147 14 59 4 50 124 Thermal 341 | . 7 47 66 28 . 9 82 . 9 . . 93 Explosive . | . . . . . . . . . . . . . Electromagnetic 84 | . 12 10 6 12 . . . 6 12 . . 26 Entropic 79 | . . . . . . . . . . 24 31 24 Robot Hit Streak 25 | . 5 8 9 14 . 9 16 12 9 5 11 25 Robot Miss Streak 8 | . 2 2 3 6 . 4 6 2 8 3 5 6 Penetration Max 1 | . . . . . . . 1 . . 1 1 1 Secondary Targets 19 | . 2 . 1 3 . . . . 1 4 3 5 Max Gunslinging Chain 2 | . 1 . 1 1 . . . . 1 2 1 1 Shots Hit Robots 722 | . 23 56 48 93 . 22 149 19 56 16 57 183 Core Hits 500 | . 12 28 20 70 . 16 82 28 65 16 37 126 Critical Kills 7 | . . . . . . . . . . . 3 4 Critical Parts Destroyed 15 | . . . . 1 . . 1 . 1 2 6 4 Critical Strikes 42 | . 2 4 5 1 . . 10 . 1 2 9 8 Burn 13 | . 2 4 5 . . . 2 . . . . . Meltdown 1 | . . . . . . . . . . . . 1 Destroy 14 | . . . . 1 . . 1 . 1 . 5 6 Blast 7 | . . . . . . . 7 . . . . . Detonate 7 | . . . . . . . . . . 2 4 1 Melee Attacks 143 | . . . . 11 8 2 17 49 7 . 4 45 Impact . | . . . . . . . . . . . . . Slashing 143 | . . . . 11 8 2 17 49 7 . 4 45 Piercing . | . . . . . . . . . . . . . Sneak Attacks 6 | . . . . . . . . 5 . . . 1 Combat Hostiles . | . . . . . . . . . . . . . Follow-up Attacks . | . . . . . . . . . . . . . Damage Inflicted 27155 | . 291 793 824 2944 . 429 4773 1221 1364 1364 2775 10377 Guns 12895 | . 291 734 664 1725 . 429 1478 239 864 770 1845 3856 Cannons 5251 | . . 20 160 . . . 3295 . . . 98 1678 Explosions 8370 | . . 39 . 1219 . . . 454 500 594 832 4732 Melee 639 | . . . . . . . . 528 . . . 111 Ramming . | . . . . . . . . . . . . . Kinetic 9455 | . 137 232 36 1287 . 275 2980 239 787 107 731 2644 Thermal 8564 | . 77 440 725 1555 . 154 1793 73 77 594 832 2244 Explosive . | . . . . . . . . . . . . . Electromagnetic 4072 | . 77 121 63 102 . . . 381 500 . . 2828 Impact . | . . . . . . . . . . . . . Slashing 639 | . . . . . . . . 528 . . . 111 Piercing . | . . . . . . . . . . . . . Entropic 4425 | . . . . . . . . . . 663 1212 2550 Highest Corruption 102 | . . . 5 7 . . 5 5 6 8 9 102 Average Corruption 12 | . . . 5 6 . . 4 5 5 7 8 37 Corruption Purged . | . . . . . . . . . . . . . Effects 200 | . . . 10 22 . . 6 26 25 6 16 89 Message Errors 54 | . . . 1 8 . . 4 6 4 3 4 24 Matter Fused 45 | . . . 1 4 . . . 11 7 3 5 14 Heat Flow Errors 21 | . . . . 3 . . . 3 4 . 2 9 Energy Discharges 17 | . . . 4 3 . . 2 . 3 . 3 2 Parts Rejected 2 | . . . . . . . . . . . . 2 Data Loss (minor) 25 | . . . 2 3 . . . 3 4 . 2 11 Data Loss (major) 5 | . . . 1 1 . . . 1 1 . . 1 Misfires 9 | . . . 1 . . . . 2 1 . . 5 Alerts 2 | . . . . . . . . . . . . 2 Misdirections 3 | . . . . . . . . . . . . 3 Weapon Failures 17 | . . . . . . . . . 1 . . 16 Overload Shots . | . . . . . . . . . . . . . Overflow Damage 1030 | . . . . 322 . . 77 116 31 121 46 317 Projectiles 126 | . . . . . . . 77 . . . 14 35 Explosions 788 | . . . . 322 . . . . 31 121 32 282 Melee 116 | . . . . . . . . 116 . . . . Knockbacks 37 | . . . . . . . 27 . . . 3 7 Impact . | . . . . . . . . . . . . . Kinetic 31 | . . . . . . . 23 . . . 2 6 Secondary 6 | . . . . . . . 4 . . . 1 1 Self-Inflicted Damage 577 | . . . . 72 . . . 9 16 . 73 407 Shots 15 | . . . . 1 . . . 1 1 . 1 11 Rammed . | . . . . . . . . . . . . . Targets Rammed . | . . . . . . . . . . . . . Kicked . | . . . . . . . . . . . . . Crushed . | . . . . . . . . . . . . . Highest Temperature 1002 | . 125 271 634 431 . . 584 174 179 128 248 1002 Average Temperature 167 | . 50 66 217 146 . . 168 66 44 55 58 222 Received Heat Transfer 2736 | . 198 144 450 429 . . 484 64 231 12 150 574 Effects 88 | . . 2 21 9 . . 9 . . . . 47 Shutdowns 22 | . . . 1 2 . . 3 . . . . 16 Energy Bleed 8 | . . . 2 1 . . . . . . . 5 Interference 19 | . . 2 2 5 . . . . . . . 10 Matter Decay 10 | . . . 5 1 . . 2 . . . . 2 Short Circuit 3 | . . . . . . . . . . . . 3 Damage (minor) 8 | . . . 2 . . . 1 . . . . 5 Damage (major) 12 | . . . 8 . . . . . . . . 4 Damage (core) 6 | . . . 1 . . . 3 . . . . 2 Siege Activations . | . . . . . . . . . . . . . Robots Corrupted 10 | . . . . . . . . 1 . . . 9 Combat Hostiles 9 | . . . . . . . . 1 . . . 8 Parts Fried 27 | . . . . . . . . 4 . . . 23 Impact Corruptions 1 | . . . . . . . 1 . . . . . Robots Melted 4 | . . . 1 . . . . . . . . 3 Combat Hostiles 4 | . . . 1 . . . . . . . . 3 Parts Melted 19 | . 1 4 6 1 . 1 . . . . . 6 Heat Transferred 11494 | . 370 1493 1961 1616 . 296 1992 50 111 275 550 2780 Parts Sabotaged . | . . . . . . . . . . . . . Parts Stolen . | . . . . . . . . . . . . . Parts Stripped . | . . . . . . . . . . . . . Power Chain Reactions 7 | . . 1 . 1 . . . 1 . . . 4 Missiles Intercepted . | . . . . . . . . . . . . . Alert | -11 -10 -9 -8 -7 -6 -5 -4 -4 -4 -4 -3 -3 ------- Run | Scr Mat Mat Mat Fac Fac Fac Fac Upp Upp War Pro Res Peak Influence 1224 | . 174 322 209 585 261 189 571 . . . . 1224 Initial 238 | . . 73 94 32 238 127 92 . . . . 106 Average 323 | . 87 224 101 310 254 155 241 . . . . 615 Maximum Alert Level 4 | . . 1 1 2 1 . 2 . . . . 4 Low Security (%) 39 | 100 100 23 93 35 . 100 45 . . . . 10 Level 1 27 | . . 76 6 2 100 . 20 . . . . 29 Level 2 20 | . . . . 62 . . 33 . . . . 10 Level 3 11 | . . . . . . . . . . . . 44 Level 4 1 | . . . . . . . . . . . . 5 Level 5 . | . . . . . . . . . . . . . High Security . | . . . . . . . . . . . . . Max Security . | . . . . . . . . . . . . . Squads Dispatched 26 | . 2 . 1 8 . 1 4 . . . . 10 Investigation 4 | . . . . 2 . 1 1 . . . . . Extermination 5 | . . . . 2 . . 1 . . . . 2 Reinforcement 16 | . 2 . 1 4 . . 2 . . . . 7 Assault 1 | . . . . . . . . . . . . 1 Garrison . | . . . . . . . . . . . . . Intercept . | . . . . . . . . . . . . . Construction Impeded 3 | . . . . 1 . . . . . . . 2 Haulers Reinforced 1 | . . . . . . . . . . . . 1 Active Scanning Responses . | . . . . . . . . . . . . . Cargo Convoy Interrupts . | . . . . . . . . . . . . . Stealth | -11 -10 -9 -8 -7 -6 -5 -4 -4 -4 -4 -3 -3 --------- Run | Scr Mat Mat Mat Fac Fac Fac Fac Upp Upp War Pro Res Distress Signals 9 | . 1 1 3 . . . 1 . . . . 3 Communications Jammed 45 | . . . . . . 1 28 . . . . 16 Distress Signals 44 | . . . . . . . 28 . . . . 16 Times Spotted 234 | . 15 13 17 22 2 2 30 6 18 19 17 73 Peak Tracking Total 15 | . 6 4 8 6 1 1 7 4 6 15 4 6 Tactical Retreats 11 | . 1 2 . 1 . . 2 1 3 . . 1 Traps | -11 -10 -9 -8 -7 -6 -5 -4 -4 -4 -4 -3 -3 ------- Run | Scr Mat Mat Mat Fac Fac Fac Fac Upp Upp War Pro Res Traps Triggered 4 | . . . . . . . 1 . 1 . . 2 Indirectly 1 | . . . . . . . . . . . . 1 Trap Hack Attempts . | . . . . . . . . . . . . . Triggered . | . . . . . . . . . . . . . Disarmed . | . . . . . . . . . . . . . Reprogrammed . | . . . . . . . . . . . . . Reused . | . . . . . . . . . . . . . Traps Extracted . | . . . . . . . . . . . . . Installed . | . . . . . . . . . . . . . Triggered 13 | . . . . . . . . . 2 11 . . Machines | -11 -10 -9 -8 -7 -6 -5 -4 -4 -4 -4 -3 -3 ---------- Run | Scr Mat Mat Mat Fac Fac Fac Fac Upp Upp War Pro Res Machines Disabled 36 | . . . 3 20 . . 3 . . . . 10 Max in Single Turn 20 | . . . 1 20 . . 1 . . . . 2 Garrison Access 1 | . . . . . . . 1 . . . . . Machines Sabotaged . | . . . . . . . . . . . . . Garrisons Compromised . | . . . . . . . . . . . . . Overloaded Fab Kills . | . . . . . . . . . . . . . Hacking | -11 -10 -9 -8 -7 -6 -5 -4 -4 -4 -4 -3 -3 --------- Run | Scr Mat Mat Mat Fac Fac Fac Fac Upp Upp War Pro Res Machines Accessed 26 | . . 2 2 4 2 3 3 1 . 7 . 2 Terminals 12 | . . 2 2 3 1 1 2 . . . . 1 Fabricators 2 | . . . . . 1 1 . . . . . . Repair Stations . | . . . . . . . . . . . . . Recycling Units 1 | . . . . 1 . . . . . . . . Scanalyzers 2 | . . . . . . 1 . . . . . 1 Garrison Access 1 | . . . . . . . 1 . . . . . Total Hacks 63 | . . 8 12 9 3 7 6 1 . 11 . 6 Successful 34 | . . 5 8 1 1 2 4 1 . 11 . 1 Failed 29 | . . 3 4 8 2 5 2 . . . . 5 Catastrophic 8 | . . . 1 1 1 2 2 . . . . 1 Database Lockouts . | . . . . . . . . . . . . . Manual 18 | . . 2 6 4 . . 3 . . . . 3 Terminals 41 | . . 8 12 8 1 2 5 . . . . 5 Fabricators 3 | . . . . . 2 1 . . . . . . Repair Stations . | . . . . . . . . . . . . . Recycling Units 1 | . . . . 1 . . . . . . . . Scanalyzers 5 | . . . . . . 4 . . . . . 1 Garrison Access 1 | . . . . . . . 1 . . . . . Terminal Hacks 26 | . . 4 6 . . . 3 1 . 11 . 1 Record 10 | . . . . . . . . . . 10 . . Prototype ID Bank 2 | . . 1 1 . . . . . . . . . Open Door 2 | . . . . . . . . 1 . 1 . . Level Access Points 1 | . . . 1 . . . . . . . . . Branch Access Points 2 | . . 1 1 . . . . . . . . . Unreport Threat 3 | . . . . . . . 3 . . . . . Locate Traps 1 | . . 1 . . . . . . . . . . Reinforcement Status 1 | . . . 1 . . . . . . . . . Zone Layout 4 | . . 1 2 . . . . . . . . 1 Fabricator Hacks 1 | . . . . . 1 . . . . . . . Network Status 1 | . . . . . 1 . . . . . . . Repair Station Hacks . | . . . . . . . . . . . . . Recycling Unit Hacks . | . . . . . . . . . . . . . Scanalyzer 2 | . . . . . . 2 . . . . . . Insert Component 2 | . . . . . . 2 . . . . . . Garrison Access Hacks 1 | . . . . . . . 1 . . . . . Seal Access 1 | . . . . . . . 1 . . . . . Unauthorized Hacks 4 | . . 1 2 1 . . . . . . . . Terminals 4 | . . 1 2 1 . . . . . . . . Assimilate 1 | . . . 1 . . . . . . . . . Botnet 3 | . . 1 1 1 . . . . . . . . Fabricators . | . . . . . . . . . . . . . Repair Stations . | . . . . . . . . . . . . . Recycling Units . | . . . . . . . . . . . . . Scanalyzers . | . . . . . . . . . . . . . Garrison Access . | . . . . . . . . . . . . . Data Cores Recovered . | . . . . . . . . . . . . . Used . | . . . . . . . . . . . . . Hacking Detections 17 | . . 2 2 4 2 3 2 . . . . 2 Full Trace Events 4 | . . . . 2 . 1 1 . . . . . Feedback Events . | . . . . . . . . . . . . . Feedback Blocked . | . . . . . . . . . . . . . Robot Schematics Acquired . | . . . . . . . . . . . . . Robots Built . | . . . . . . . . . . . . . Authchips . | . . . . . . . . . . . . . Time . | . . . . . . . . . . . . . Total Robot Build Rating . | . . . . . . . . . . . . . Part Schematics Acquired . | . . . . . . . . . . . . . Parts Built . | . . . . . . . . . . . . . Authchips . | . . . . . . . . . . . . . Time . | . . . . . . . . . . . . . Total Part Build Rating . | . . . . . . . . . . . . . Parts Repaired . | . . . . . . . . . . . . . Time . | . . . . . . . . . . . . . Parts Recycled . | . . . . . . . . . . . . . Recycled Matter . | . . . . . . . . . . . . . Retrieved Matter . | . . . . . . . . . . . . . Retrieved Components . | . . . . . . . . . . . . . Parts Scanalyzed . | . . . . . . . . . . . . . Part Schematics Acquired . | . . . . . . . . . . . . . Parts Damaged . | . . . . . . . . . . . . . Bothacking | -11 -10 -9 -8 -7 -6 -5 -4 -4 -4 -4 -3 -3 ------------ Run | Scr Mat Mat Mat Fac Fac Fac Fac Upp Upp War Pro Res Used RIF Installer . | . . . . . . . . . . . . . Robots Hacked 1 | . . . . 1 . . . . . . . . Non-combat 1 | . . . . 1 . . . . . . . . Combat . | . . . . . . . . . . . . . Robot Hacks Applied 2 | . . . . 2 . . . . . . . . parse_system 1 | . . . . 1 . . . . . . . . check_alert 1 | . . . . 1 . . . . . . . . Relay Couplers Released . | . . . . . . . . . . . . . Fabnet Peak Effective % . | . . . . . . . . . . . . . Robots Rewired 5 | . . . . . . . . . . 5 . . Allies Hacked . | . . . . . . . . . . . . . Hacks Repelled . | . . . . . . . . . . . . . Allies | -11 -10 -9 -8 -7 -6 -5 -4 -4 -4 -4 -3 -3 -------- Run | Scr Mat Mat Mat Fac Fac Fac Fac Upp Upp War Pro Res Total Allies 6 | . . . 1 . . . . . . 5 . . Largest Group 5 | . . . 1 . . . . . . 5 4 . Highest-Rated Group 274 | . . . 10 . . . . . . 274 211 . Highest-Rated Ally 56 | . . . 10 . . . . . . 56 56 . Total Orders 10 | . . . . . . . . . . . 7 3 EXPLORE 9 | . . . . . . . . . . . 6 3 RETURN 1 | . . . . . . . . . . . 1 . Ally Attacks 38 | . . . . . . . . . . 31 7 . Total Damage 1498 | . . . . . . . . . . 1281 217 . Kills 13 | . . . . . . . . . . 11 2 . Allies Corrupted . | . . . . . . . . . . . . . Allies Melted . | . . . . . . . . . . . . . Intel | -11 -10 -9 -8 -7 -6 -5 -4 -4 -4 -4 -3 -3 ------- Run | Scr Mat Mat Mat Fac Fac Fac Fac Upp Upp War Pro Res Robot Analysis Total . | . . . . . . . . . . . . . Derelict Logs Recovered 1 | . . . . . . . . 1 . . . . Drone Launches 14 | . . . . . . . . . . . 7 7 Drone Recoveries 11 | . . . . . . . . . . . 6 5 Exploration | -11 -10 -9 -8 -7 -6 -5 -4 -4 -4 -4 -3 -3 ------------- Run | Scr Mat Mat Mat Fac Fac Fac Fac Upp Upp War Pro Res Turns Passed 9384 | 7 110 658 636 1082 376 394 1027 1346 977 685 620 1466 Spaces Moved 4965 | 3 50 417 303 504 184 255 509 719 526 436 322 737 Core . | . . . . . . . . . . . . . Treads 1517 | 3 . 60 21 . . . 175 719 525 14 . . Legs 367 | . . . . 183 184 . . . . . . . Wheels 3081 | . 50 357 282 321 . 255 334 . 1 422 322 737 Hover . | . . . . . . . . . . . . . Flight . | . . . . . . . . . . . . . Fastest Speed 95 | 160 95 95 120 120 190 130 115 166 130 130 130 105 Average Speed 147 | 160 95 117 156 164 191 135 143 166 165 140 142 126 Slowest Speed 320 | 160 95 240 320 260 192 160 175 166 166 250 145 170 Overloaded Moves . | . . . . . . . . . . . . . Propulsion Burnouts . | . . . . . . . . . . . . . Robots Hopped . | . . . . . . . . . . . . . Cave-ins Triggered 1 | . . . . . . . . . . 1 . . Exploration Rate (%) 36 | 2 23 46 31 15 6 7 15 80 72 72 73 36 Regions Visited 12 Branch Regions 4 Pre-discovered Areas . | . . . . . . . . . . . . . Known Exits Taken 6 | . . . 1 . . . 1 1 1 1 1 . Unknown Exits Taken 6 | 1 1 1 . 1 1 1 . . . . . . Scrap Searched 4 | . . . . . . . . 2 2 . . . Spaces Dug 136 | . . . . 11 8 2 17 42 7 4 4 41 Terrain Destroyed 517 | . . 3 . 56 8 2 45 58 9 41 83 212 Melee 132 | . . . . 11 8 2 17 42 7 . 4 41 Projectile 144 | . . . . . . . 28 1 2 20 45 48 AOE 241 | . . 3 . 45 . . . 15 . 21 34 123 Terrain Rammed . | . . . . . . . . . . . . . Walls Destroyed . | . . . . . . . . . . . . . Machines Disabled . | . . . . . . . . . . . . . Actions | -11 -10 -9 -8 -7 -6 -5 -4 -4 -4 -4 -3 -3 --------- Run | Scr Mat Mat Mat Fac Fac Fac Fac Upp Upp War Pro Res Total 6156 | 6 74 528 394 662 196 292 680 789 574 495 433 1033 Wait 135 | . . 13 5 25 . . 7 . 1 1 66 17 Move 4953 | 2 49 416 302 503 183 254 508 718 525 435 321 737 Hop . | . . . . . . . . . . . . . Pick Up 134 | . 4 15 20 21 1 10 13 4 . 7 4 35 Fast Attach 73 | . . 9 8 5 2 3 14 3 1 2 1 25 Attach 71 | 2 2 2 9 7 1 2 4 . . 7 4 31 Detach 6 | . . 2 1 . . . . . . . . 3 Swap 72 | . . 12 5 19 . 1 19 1 5 . 3 7 Drop 123 | 2 . 25 5 23 1 11 24 5 1 8 2 16 Fire 422 | . 19 34 39 48 . 9 74 10 34 10 28 117 Melee 142 | . . . . 11 8 2 17 48 7 . 4 45 Ram . | . . . . . . . . . . . . . Kick . | . . . . . . . . . . . . . Crush . | . . . . . . . . . . . . . Escape Stasis . | . . . . . . . . . . . . . Rewire 25 | . . . . . . . . . . 25 . . Trap . | . . . . . . . . . . . . . Miscellaneous . | . . . . . . . . . . . . . Route ------- -11/Scrapyard -10/Materials -9/Materials (discovered 3 exits: *Mat x2 / Min) -8/Materials (discovered 3 exits: *Fac x3) -7/Factory -6/Factory -5/Factory -4/Factory -4/Upper Caves -4/Upper Caves -4/Warlord -3/Proximity Caves -3/Research History --------- Turn | Location | Event 4 | -11/Scrapyard | Discovered new exit (range 3) 8 | -11/Scrapyard | Entered Materials 102 | -10/Materials | Discovered new exit (range 14) 118 | -10/Materials | Entered another Materials area 118 | -9/Materials | Evolved 2 slots: Utility x1, Weapon x1 346 | -9/Materials | Identified exit to Mines 480 | -9/Materials | Discovered new exit (range 4) 536 | -9/Materials | Build established: Scavenger-Skirmisher 773 | -9/Materials | Discovered new exit (range 3) 776 | -9/Materials | Entered another Materials area 776 | -8/Materials | Evolved 2 slots: Utility x2 933 | -8/Materials | Identified exit to Factory 1012 | -8/Materials | Core integrity fell below 50% 1054 | -8/Materials | Lost 9 parts (3n2u4w) 1412 | -8/Materials | Entered Factory 1412 | -7/Factory | Evolved 2 slots: Propulsion x1, Utility x1 1443 | -7/Factory | Build established: Scavenger-Assassin 1851 | -7/Factory | Lost 3 parts (1n2u) 1859 | -7/Factory | Destroyed 7 combat bots 2428 | -7/Factory | Discovered new exit (range 6) 2494 | -7/Factory | Entered another Factory area 2494 | -6/Factory | Evolved 2 slots: Propulsion x1, Utility x1 2591 | -6/Factory | Build established: Scavenger-Mutant 2826 | -6/Factory | Discovered new exit (range 16) 2870 | -6/Factory | Entered another Factory area 2870 | -5/Factory | Evolved 2 slots: Utility x1, Weapon x1 2975 | -5/Factory | Discovered new exit (range 15) 3175 | -5/Factory | Build established: Scavenger-Gunner 3264 | -5/Factory | Entered another Factory area 3264 | -4/Factory | Evolved 2 slots: Utility x2 3757 | -4/Factory | Destroyed 7 combat bots 3885 | -4/Factory | Core integrity fell below 50% 4218 | -4/Factory | Discovered new exit (range 13) 4289 | -4/Factory | Identified exit to Upper Caves 4291 | -4/Factory | Entered Upper Caves 4521 | -4/Upper Caves | Found Alien Artifact 4521 | -4/Upper Caves | Identified Core Expander 4521 | -4/Upper Caves | Installed Core Expander, added new Weapon slot 5073 | -4/Upper Caves | Learned Research garrison access intel 5154 | -4/Upper Caves | Spotted B-86 Titan 5544 | -4/Upper Caves | Discovered new exit (range 8) 5551 | -4/Upper Caves | Identified exit to Upper Caves 5637 | -4/Upper Caves | Entered another Upper Caves area 5662 | -4/Upper Caves | Attracted the attention of an 0b10 checkpoint 5878 | -4/Upper Caves | Destroyed 7 combat bots 6412 | -4/Upper Caves | Discovered new exit (range 8) 6538 | -4/Upper Caves | Identified exit to Warlord 6614 | -4/Upper Caves | Entered Warlord 6657 | -4/Warlord | System corruption cleaned by Quarantine Array 6864 | -4/Warlord | Learned 4 Armory zone layouts 6864 | -4/Warlord | Learned 4 Armory zone layouts 6865 | -4/Warlord | Learned Testing security intel 6865 | -4/Warlord | Learned Quarantine security intel 6865 | -4/Warlord | Learned Factory recycling unit intel 6865 | -4/Warlord | Learned Armory scanalyzer intel 6895 | -4/Warlord | Warlord's base attacked by MAIN.C 6902 | -4/Warlord | Found Prototype Energy Gun 6905 | -4/Warlord | Found Prototype Energy Gun 6905 | -4/Warlord | Identified Vortex Rail (x2) 6911 | -4/Warlord | Found Prototype Energy Gun 6911 | -4/Warlord | Identified Vortex Shotgun 6914 | -4/Warlord | Found Vortex Shotgun 6920 | -4/Warlord | Found Prototype Launcher 7059 | -4/Warlord | Met Warlord 7194 | -4/Warlord | Warlord forces counterattacked 7219 | -4/Warlord | Spotted Striker 7219 | -4/Warlord | Spotted Executioner 7222 | -4/Warlord | Allies destroyed Striker 7224 | -4/Warlord | Crushed by falling debris 7225 | -4/Warlord | Destroyed Executioner 7255 | -4/Warlord | Lost 3 parts (3u) 7275 | -4/Warlord | Discovered new exit (range 11) 7296 | -4/Warlord | Identified exit to Proximity Caves 7299 | -4/Warlord | Entered Proximity Caves 7299 | -3/Proximity Caves | Accompanied by 4 allies 7688 | -3/Proximity Caves | Lost 3 parts (1p1u1w) 7781 | -3/Proximity Caves | Attracted the attention of an 0b10 checkpoint 7825 | -3/Proximity Caves | Discovered new exit (range 13) 7855 | -3/Proximity Caves | Identified exit to Research 7919 | -3/Proximity Caves | Entered Research 7919 | -3/Research | Evolved 2 slots: Power x1, Weapon x1 7920 | -3/Research | Loaded intel: 1 garrison access location 8073 | -3/Research | System corruption reached 10% 8223 | -3/Research | Build established: Scavenger-Executioner 8455 | -3/Research | Lost 3 parts (2n1w) 8478 | -3/Research | System corruption reached 30% 8492 | -3/Research | Identified Vortex Catalyst Activator 8522 | -3/Research | Lost 3 parts (1u2w) 8618 | -3/Research | Lost 7 parts (1p4u2w) 8641 | -3/Research | Found Prototype Launcher 8641 | -3/Research | Identified Com. Tesla Bomb Launcher 8652 | -3/Research | Found Com. Tesla Bomb Launcher 9135 | -3/Research | Lost 9 parts (1p1n3u4w) 9169 | -3/Research | First assault squad dispatched 9347 | -3/Research | Lost 4 parts (2p1n1w) 9366 | -3/Research | Core integrity fell below 50% 9386 | -3/Research | System corrupted Last Messages --------------- 09381_ Acquired 30 matter. 09381_ Critical hit (Burn: +37). 09382_ Acquired Coil Gun. 09383_ Overheating: Energy bleed (-32). 09383_ Hvy. Armor Plating destroyed. 09383_ Critical hit (Burn: +50). 09383_ Hdn. Centrium Wheel destroyed. 09384_ Overheating: System interference. 09384_ Hvy. Neutron Cannon temporarily disabled. 09384_ Plasma Rifle temporarily disabled. 09384_ Imp. Weapon Cycler destroyed. 09385_ Overheating: Hvy. Neutron Cannon damaged (-75). 09385_ Overheating: Hcp. Storage Unit damaged (-196). 09385_ Overheating: Broken Hdn. Centrium Wheel damaged (-40). 09385_ Broken Hdn. Centrium Wheel destroyed. 09385_ Acquired Corrupted Lgt. Antimatter Reactor. 09385_ Integrated Corrupted Lgt. Antimatter Reactor (+10). 09386_ Power failure, Rnf. Antimatter Reactor shutdown. 09386_ Power failure, Lgt. Antimatter Reactor shutdown. 09386_ Cogmind system terminally corrupted. Map ----- +----------------------------------------------------+ | ?????????????????????????????????????????????????? | | ?????????????????????????????????????????????????? | | ?????????????????????????????????????????????????? | | ?????????????????????????????????????????????????? | | ?????????????????????????????????????????????????? | | ?????????????????????????????????????????????????? | | ?????????????????????????????????????????????????? | | ??????????????????????????? ?????????????????????? | | ??????????????????????????# ?????????????????????? | | ???????????????????????### #????????????????????? | | ????????################ ""##???????????????????? | | ????????# # ##??????????????????? | | ????????# ## ! #??????????????????? | | ??????### " """ # [#??????????????????? | | ??##### # "" """ # #??????????????????? | | ?## # "" " # #??????????????????? | | ## ##% ## =#??????????????????? | | =+ "# / #??????????????????? | | ##" # """ ## = = #??????????????????? | | ?# # """S"" ## = #??????????????????? | | ?## #### """"""%=## u=% #??????????????????? | | #######?# !=! ## =#??????????????????? | | ##?# *!%!= ## *%! =#??????????????????? | | ##########+##########%%####?????????????????? | | # k u k %%% #?????????????????? | | # g k @[[ #?????????????????? | | # g u u #?????????????????? | | + g g m u #?????????????????? | | # ###+######### ###;# #?????????????????? | | # # ??????# ### # ???????????????? | | # ??# ????# #?# # ?????????????? | | # ???# ??# #?### ###k ????????????? | | #????# #?# #?????#??##+##???????????? | | #????# #?# #??????????? ???????????? | | ######????# #?# #???????????? ???????????? | | ??????????# ""T"" #?# ?????????????????????????? | | ??????????# """"" #?# ?????????????????????????? | | ??????????###########??+?????????????????????????? | | ?????????????????????????????????????????????????? | | ?????????????????????????????????????????????????? | | ?????????????????????????????????????????????????? | | ?????????????????????????????????????????????????? | | ?????????????????????????????????????????????????? | | ?????????????????????????????????????????????????? | | ??????????????????????????????H??????????????????? | | ?????????????????????????????????????????????????? | | ?????????????????????????????????????????????????? | | ?????????????????????????????????????????????????? | | ?????????????????????????????????????????????????? | | ?????????????????????????????????????????????????? | +----------------------------------------------------+ Best States ------------- Heat Dissipation 100 Energy Generation 39 Energy Capacity 650 Matter Stores 390 Matter Capacity 400 Sight Range 18 Robot Scan Range 16 Terrain Scan Range 14 Terrain Scan Density 160 Jamming Range 8 Armor Coverage 600 Resistance: KI 25 Weapon Cycling 30 Evasion (%) 41 Targeting Accuracy 14 Core Analysis 10 Armor Integrity Analysis 30 Recoil Reduction 4 Offensive Hacking 10 Defensive Hacking 30 Item Schematics ----------------- None Robot Schematics ------------------ None Fabricated ------------ Nothing Alien Tech Used ----------------- Core Expander Achievements -------------- None Challenges ------------ None Game ------ Seed AlloyCoordinationLog Manual? 0 Play Time 02:19:50 Cumulative 478.0 hours Start 2021.11.10 @ 16:35:50 End 2021.11.10 @ 19:05:03 Sessions 1 Manual Loads 0 Difficulty Rogue Special Mode None Game No. 96 Rogue 65 Adventurer 31 Explorer 0 Win Type - Total 26 Types 21/0/2/3/0/0/0/0/0 Lore% 68 Gallery% 80 Achievement% 63 Wizard Run 0 Options --------- ASCII 0 Keyboard 0 Movement Arrows Keybinds 0 Fullscreen 1 Font 20/Terminus Map View 66x50 Tactical HUD 1 Map Filters NONE Filters NONE Steam 1 RUN: 37837010-2fdb-434c-ae90-e674fe538434